bitfinex-derivatives/quotes_SOLF0:USTF0_20250311
["timestamp","ask_amount","ask_price","bid_price","bid_amount"]
[1741720751979,7.94001272,126.87,126.85,0.05634566]
[1741720752181,0.05641272,126.87,126.86,37.64]
[1741720752577,260.04,126.89,126.86,37.64]
[1741720752779,260.04,126.89,126.87,7.8834]
[1741720752974,260.04,126.89,126.86,37.64]
[1741720753782,260.09036231,126.89,126.86,45.5238]
[1741720753978,260.09036231,126.89,126.86,37.64]
[1741720754376,289.03642637,126.89,126.86,37.64]
[1741720755079,296.91882637,126.89,126.86,37.64]
[1741720755281,289.03642637,126.89,126.86,37.64]
[1741720755482,296.91872637,126.89,126.86,37.64]
[1741720756182,289.03642637,126.89,126.85,0.05634566]
[1741720756382,289.03642637,126.89,126.85,37.69634566]
[1741720756884,289.03642637,126.89,126.85,45.58044566]
[1741720757082,289.03642637,126.89,126.85,37.69634566]
[1741720757282,260.09036231,126.89,126.85,0.05634566]
[1741720757473,260.09036231,126.89,126.86,7.8837]
[1741720757673,260.09036231,126.89,126.85,0.05634566]
[1741720757877,0.05036231,126.89,126.88,7.8828]
[1741720758285,260.06,126.95,126.87,37.64]
[1741720758478,7.8804,126.92,126.87,37.64]
[1741720758673,260.06,126.95,126.87,37.64]
[1741720758674,28.94606406,126.93,126.87,37.64]
[1741720759188,7.8807,126.92,126.87,37.64]
[1741720759684,7.8816,126.9,126.89,0.05124237]
[1741720759874,0.05602241,126.91,126.89,0.05124237]
[1741720762082,7.93732241,126.91,126.89,0.05124237]
[1741720762477,7.93732241,126.91,126.89,7.93344237]
[1741720762680,0.05602241,126.91,126.89,0.05124237]
[1741720763085,0.05602241,126.91,126.9,7.8816]
[1741720763384,260.06,126.95,126.89,0.05124237]
[1741720763385,260.06,127.01,126.89,31.35730643]
[1741720763581,4.037,127.04,126.92,28.94606406]
[1741720763788,28.94606406,127.05,126.93,41.6448]
[1741720763977,72.49200144,127.06,126.94,32.86606406]
[1741720764284,7.8752,127.01,126.94,3.92]
[1741720764478,0.05382153,127.01,126.99,0.05028115]
[1741720764677,0.05382153,127.01,127.0,7.8754]
[1741720765288,0.05382153,127.01,126.99,12.21648685]
[1741720765476,0.05382153,127.01,126.99,4.34068685]
[1741720766089,0.05382153,127.01,126.99,0.05018685]
[1741720767784,7.8754,127.0,126.99,0.05018685]
[1741720767991,0.05382153,127.01,126.99,0.05018685]
[1741720768490,7.92892153,127.01,126.99,0.05018685]
[1741720768787,0.05382153,127.01,126.99,0.05018685]
[1741720768987,7.92912153,127.01,126.99,0.05018685]
[1741720769189,0.05382153,127.01,126.99,0.05018685]
[1741720769483,7.8754,127.0,126.99,0.05018685]
[1741720769691,0.05382153,127.01,126.99,0.05018685]
[1741720771188,7.8754,127.0,126.99,0.05018685]
[1741720771584,28.99988559,127.01,126.94,37.62]
[1741720771886,28.94606406,126.95,126.89,43.05955589]
[1741720772291,28.94606406,126.95,126.89,50.94135589]
[1741720772595,28.94606406,126.95,126.89,43.05955589]
[1741720772790,0.05481398,126.93,126.91,0.0598081]
[1741720773391,0.05481398,126.93,126.92,7.8803]
[1741720773787,1.398e-05,126.93,126.92,45.4803]
[1741720775196,1.398e-05,126.93,126.92,49.493]
[1741720777398,1.398e-05,126.93,126.92,45.4803]
[1741720778393,1.398e-05,126.93,126.92,54.031]
[1741720779597,1.398e-05,126.93,126.92,49.7892]
[1741720781995,1.398e-05,126.93,126.92,12.1892]
[1741720782295,1.398e-05,126.93,126.92,37.6]
[1741720782803,1.398e-05,126.93,126.92,45.4803]
[1741720786400,259.94,127.02,127.0,7.8751]
[1741720786600,259.94,127.02,126.98,37.58]
[1741720787103,7.876,126.99,126.95,37.58]
[1741720787506,7.876,126.99,126.96,7.8777]
[1741720787704,0.06024691,126.98,126.96,0.05707364]
[1741720787904,7.93694691,126.98,126.96,0.05707364]
[1741720788503,7.93694691,126.98,126.96,7.93497364]
[1741720788695,0.06024691,126.98,126.96,7.93497364]
[1741720789204,7.93694691,126.98,126.96,0.05707364]
[1741720789406,0.06024691,126.98,126.96,0.05707364]
[1741720789800,0.06024691,126.98,126.96,7.93497364]
[1741720790003,0.06024691,126.98,126.96,0.05707364]
[1741720790502,0.06024691,126.98,126.97,7.8772]
[1741720792208,0.06024691,126.98,126.96,7.93467364]
[1741720792408,7.93744691,126.98,126.96,0.05707364]
[1741720793409,0.06024691,126.98,126.96,0.05707364]
[1741720793910,0.06024691,126.98,126.97,7.8772]
[1741720794111,7.93714691,126.98,126.96,0.05707364]
[1741720794504,0.06024691,126.98,126.96,0.05707364]
[1741720796011,0.06024691,126.98,126.97,7.8772]
[1741720796714,0.06024691,126.98,126.96,0.05707364]
[1741720797015,0.06024691,126.98,126.97,7.8772]
[1741720798105,0.06024691,126.98,126.96,7.93457364]
[1741720798920,0.06024691,126.98,126.97,7.8772]
[1741720800118,259.94,127.02,126.96,0.05707364]
[1741720800313,278.02505745,127.02,126.96,0.05707364]
[1741720800514,7.8753,127.01,126.96,0.05707364]
[1741720800715,278.02505745,127.02,126.96,0.05707364]
[1741720801112,18.13905717,127.0,126.96,0.05707364]
[1741720801522,7.877,126.98,126.96,7.93487364]
[1741720801718,7.877,126.98,126.96,0.05707364]
[1741720801915,18.08505745,126.98,126.96,0.05707364]
[1741720802120,25.96195745,126.98,126.96,0.05707364]
[1741720802320,18.08505745,126.98,126.96,0.05707364]
[1741720802620,18.13905717,127.0,126.96,0.05707364]
[1741720803221,0.05399972,127.0,126.96,0.05707364]
[1741720803421,18.08505745,126.99,126.96,0.05707364]
[1741720803621,0.05399972,127.0,126.96,0.05707364]
[1741720804920,28.9421445,126.99,126.96,0.05707364]
[1741720805127,0.05399972,127.0,126.96,0.05707364]
[1741720805620,0.05399972,127.0,126.99,7.876]
[1741720806628,259.94,127.02,127.01,7.8748]
[1741720806829,259.94,127.02,126.98,4.1548]
[1741720807030,267.8142,127.02,126.98,4.1548]
[1741720807224,259.94,127.02,126.97,37.54]
[1741720807624,4.2938,127.07,126.97,37.54]
[1741720807925,4.2938,127.07,127.0,7.8754]
[1741720807926,0.05692757,127.01,127.0,7.8754]
[1741720808227,259.88,127.08,126.99,0.0539423]
[1741720808430,10.84793172,127.1,126.99,194.1398]
[1741720808621,28.9421445,127.08,126.99,4.1398]
[1741720808820,28.9421445,127.05,126.99,41.6798]
[1741720809033,28.9421445,127.02,126.96,37.54]
[1741720809229,7.8757,127.0,126.96,37.54]
[1741720809533,0.04967812,126.99,126.97,0.05273685]
[1741720810231,7.8766,126.98,126.97,0.05273685]
[1741720810426,28.99182262,126.99,126.92,37.54]
[1741720810731,28.99182262,126.99,126.94,43.05955589]
[1741720810732,28.9421445,126.99,126.94,43.05955589]
[1741720811028,42.0914,127.01,126.94,43.05955589]
[1741720811325,49.4931,127.01,126.94,43.05955589]
[1741720811523,0.05670432,126.99,126.96,0.05348136]
[1741720811725,0.05670432,126.99,126.97,7.8768]
[1741720812026,0.05670432,126.99,126.96,0.05348136]
[1741720812423,0.05670432,126.99,126.96,37.59348136]
[1741720812623,28.9421445,127.05,126.97,4.0886]
[1741720812828,41.8738,127.07,126.97,4.0886]
[1741720813237,41.8738,127.07,127.02,7.8741]
[1741720813526,49.7451,127.07,127.0,37.54]
[1741720813731,0.05066288,127.05,127.03,0.05266211]
[1741720814427,28.9421445,127.04,126.97,41.6286]
[1741720814932,41.8738,127.07,127.02,7.8739]
[1741720815233,28.9421445,127.05,126.97,41.6286]
[1741720815621,0.05641272,127.02,127.0,0.05061716]
[1741720815825,0.05641272,127.02,127.0,7.92561716]
[1741720816026,0.05641272,127.02,127.0,0.05061716]
[1741720816227,7.93091272,127.02,127.0,0.05061716]
[1741720816534,0.05641272,127.02,127.0,0.05061716]
[1741720817128,0.05641272,127.02,127.01,7.8748]
[1741720817327,29.4163445,127.11,127.01,37.52]
[1741720817532,264.1305,127.12,127.02,8.2437]
[1741720818130,264.1305,127.12,127.05,7.8717]
[1741720818331,0.05761213,127.1,127.07,0.05898939]
[1741720819536,7.8704,127.08,127.07,0.05898939]
[1741720820531,28.9421445,127.09,127.01,37.52]
[1741720820933,28.9421445,127.09,127.03,7.8733]
[1741720821236,28.9421445,127.09,127.01,37.52]
[1741720821631,0.05419993,127.06,127.04,0.05648749]
[1741720822336,28.99634443,127.06,126.98,23.12910313]
[1741720822539,28.9421445,127.03,126.98,14.70220313]
[1741720822731,7.8754,127.0,126.98,14.70220313]
[1741720822931,28.9421445,127.03,126.98,14.70220313]
[1741720823134,28.9421445,127.03,126.99,7.8759]
[1741720823337,259.82,127.04,126.98,14.70220313]
[1741720823635,0.05920284,127.02,127.0,0.06024345]
[1741720824434,0.05920284,127.02,127.01,37.5]
[1741720824637,28.9421445,127.08,127.01,37.5]
[1741720824933,259.82,127.1,127.02,33.0467445]
[1741720825139,259.82,127.1,127.05,28.9421445]
[1741720825433,7.8674,127.13,127.1,7.8691]
[1741720825936,0.05197841,127.13,127.1,7.92033829]
[1741720826137,0.05197841,127.13,127.1,45.42033829]
[1741720826438,259.82,127.16,127.1,37.55123829]
[1741720826631,10.84793172,127.19,127.1,37.55123829]
[1741720827035,10.84793172,127.19,127.1,37.5]
[1741720827435,10.84793172,127.19,127.13,7.8668]
[1741720827635,0.05678912,127.16,127.14,37.48]
[1741720829034,0.05678912,127.16,127.14,45.3463]
[1741720829339,0.05678912,127.16,127.14,37.48]
[1741720829534,0.05678912,127.16,127.15,7.8661]
[1741720829840,87.20222752,127.2,127.14,41.4065]
[1741720830044,259.76,127.22,127.14,41.4065]
[1741720830339,267.6218,127.22,127.17,7.8645]
[1741720830739,7.8625,127.21,127.16,7.865]
[1741720830940,259.76,127.22,127.18,0.05919956]
[1741720831239,259.76,127.22,127.19,7.8635]
[1741720831640,259.76,127.22,127.18,0.05919956]
[1741720832432,7.8634,127.2,127.18,0.05919956]
[1741720833344,7.8626,127.21,127.18,0.05919956]
[1741720833538,259.76,127.22,127.18,0.05919956]
[1741720834443,28.9421445,127.2,127.09,4.2393]
[1741720834637,28.9421445,127.16,127.07,8.0156]
[1741720834837,28.9421445,127.16,127.08,37.46]
[1741720835038,7.8677,127.13,127.08,37.46]
[1741720835440,0.05794575,127.12,127.09,0.0517235]
[1741720837842,7.92634575,127.12,127.09,0.0517235]
[1741720838049,0.05794575,127.12,127.09,0.0517235]
[1741720838441,0.05794575,127.12,127.11,7.8686]
[1741720838848,0.05794575,127.12,127.09,0.0517235]
[1741720839138,0.05794575,127.12,127.11,7.8686]
[1741720839343,0.05794575,127.12,127.09,0.0517235]
[1741720839658,0.05794575,127.12,127.11,7.8686]
[1741720840550,0.05794575,127.12,127.09,0.0517235]
[1741720842259,7.92624575,127.12,127.09,7.9211235]
[1741720842753,0.05794575,127.12,127.09,0.0517235]
[1741720842949,7.8689,127.11,127.09,0.0517235]
[1741720843158,0.05794575,127.12,127.09,0.0517235]
[1741720843346,0.05794575,127.12,127.1,7.8686]
[1741720843652,0.05794575,127.12,127.09,0.0517235]
[1741720844555,7.92624575,127.12,127.09,7.9212235]
[1741720844757,0.05794575,127.12,127.09,0.0517235]
[1741720845462,0.05794575,127.12,127.11,7.8686]
[1741720845652,0.05794575,127.12,127.09,0.0517235]
[1741720846149,0.05794575,127.12,127.11,7.8686]
[1741720847749,0.05794575,127.12,127.1,45.3089]
[1741720847954,0.05794575,127.12,127.1,37.44]
[1741720849359,0.05794575,127.12,127.11,7.8686]
[1741720849562,0.05794575,127.12,127.1,37.44]
[1741720850162,0.05794575,127.12,127.11,7.8686]
[1741720854158,259.6,127.14,127.13,7.8673]
[1741720854359,0.4733,127.22,127.11,4.0794]
[1741720854554,288.5421445,127.2,127.11,4.0794]
[1741720854760,7.8637,127.19,127.16,7.8652]
[1741720854965,288.5421445,127.2,127.15,37.42]
[1741720855366,288.5421445,127.2,127.16,0.05514168]
[1741720856767,7.8639,127.19,127.16,7.92024168]
[1741720857161,7.8639,127.19,127.16,0.05514168]
[1741720857462,296.4056445,127.2,127.17,7.8648]
[1741720857860,288.5421445,127.2,127.17,7.8648]
[1741720858062,288.5421445,127.2,127.18,7.864]
[1741720858859,288.5421445,127.2,127.19,7.8636]
[1741720859067,259.6,127.2,127.16,0.05514168]
[1741720859465,259.6,127.2,127.19,7.8636]
[1741720859967,4.1992,127.25,127.21,7.8621]
[1741720860366,4.1992,127.25,127.19,37.4]
[1741720860561,4.1992,127.25,127.22,0.05997412]
[1741720860968,7.8616,127.23,127.22,0.05997412]
[1741720861469,28.9421445,127.25,127.22,0.05997412]
[1741720861671,28.9421445,127.27,127.22,0.05997412]
[1741720861867,28.9421445,127.27,127.19,37.4]
[1741720862065,7.8594,127.26,127.23,7.8606]
[1741720862268,28.9421445,127.27,127.23,0.0522031]
[1741720862573,7.8596,127.26,127.23,0.0522031]
[1741720862968,37.4,127.31,127.25,7.8594]
[1741720863272,76.43418188,127.32,127.23,37.38]
[1741720863467,76.43418188,127.32,127.27,0.05255762]
[1741720863664,7.8581,127.28,127.27,0.05255762]
[1741720863870,76.43418188,127.32,127.27,0.05255762]
[1741720864578,28.9421445,127.29,127.2,4.2593]
[1741720864873,7.8619,127.22,127.18,41.4433]
[1741720865269,28.9421445,127.23,127.18,4.0633]
[1741720865471,28.9421445,127.23,127.16,4.09]
[1741720865768,0.05836168,127.21,127.18,0.056104]
[1741720867970,7.92076168,127.21,127.18,7.920104]
[1741720868273,28.9421445,127.2,127.18,0.056104]
[1741720868672,28.9421445,127.2,127.11,3.9371]
[1741720868673,37.38,127.19,127.11,3.9371]
[1741720868877,28.9421445,127.17,127.11,3.9371]
[1741720869074,259.46,127.16,127.09,18.63810313]
[1741720869670,7.8668,127.14,127.09,10.76850313]
[1741720869874,0.0591139,127.14,127.11,0.05970983]
[1741720870966,0.0591139,127.14,127.12,7.8679]
[1741720871170,0.0591139,127.14,127.11,0.05970983]
[1741720872968,7.9263139,127.14,127.11,0.05970983]
[1741720873168,0.0591139,127.14,127.11,0.05970983]
[1741720873373,7.8679,127.12,127.11,0.05970983]
[1741720874067,7.8699,127.09,127.01,190.0]
[1741720874274,28.9421445,127.12,127.04,7.8726]
[1741720874580,28.9421445,127.12,127.03,41.589]
[1741720874776,4.0639,127.11,127.05,7.8719]
[1741720874976,4.0639,127.11,127.03,41.589]
[1741720874977,7.8693,127.1,127.03,41.589]
[1741720875168,0.05411398,127.09,127.07,0.05467514]
[1741720875776,28.9421445,127.14,127.08,7.8704]
[1741720875976,28.9421445,127.14,127.07,37.38]
[1741720876587,36.8090445,127.14,127.07,37.38]
[1741720876774,41.4239,127.15,127.07,37.38]
[1741720876974,0.05892518,127.12,127.09,0.05137814]
[1741720878073,0.05892518,127.12,127.1,7.8692]
[1741720878278,0.05892518,127.12,127.09,0.05137814]
[1741720878679,28.9421445,127.11,127.09,0.05137814]
[1741720878887,7.8692,127.1,127.09,0.05137814]
[1741720879077,31.3021445,127.11,127.03,4.229]
[1741720879278,31.3021445,127.11,127.02,7.8739]
[1741720879279,28.9421445,127.08,127.02,7.8739]
[1741720879483,259.58,127.07,126.99,37.38]
[1741720879685,259.58,127.07,126.97,11.8741]
[1741720879985,259.58,127.07,126.98,37.38]
[1741720880375,0.05154468,127.03,127.01,0.05558238]
[1741720881184,0.05154468,127.03,127.02,7.8741]
[1741720883184,259.58,127.07,127.02,37.38]
[1741720883383,259.58,127.07,127.04,7.8725]
[1741720883590,267.4513,127.07,127.02,37.38]
[1741720883786,267.4513,127.07,127.04,7.8727]
[1741720883986,259.58,127.07,127.02,37.38]
[1741720884190,259.58,127.07,127.03,4.2398]
[1741720884490,259.7,127.12,127.03,12.6355068]
[1741720884689,0.05725655,127.06,127.03,12.5857]
[1741720884890,259.7,127.12,127.06,0.0568668]
[1741720885091,259.7,127.12,127.03,12.5857]
[1741720885297,7.8714,127.07,127.04,7.8728]
[1741720886096,7.92295137,127.07,127.04,7.93009809]
[1741720886501,0.05155137,127.07,127.05,7.8722]
[1741720886700,0.05155137,127.07,127.04,0.05729809]
[1741720887597,259.7,127.12,127.11,7.8686]
[1741720887793,265.33988566,127.18,127.08,37.38]
[1741720887996,259.72,127.18,127.09,70.5212445]
[1741720888297,0.3263,127.25,127.13,28.9421445]
[1741720888298,259.72,127.24,127.13,28.9421445]
[1741720888502,259.72,127.24,127.14,41.6419]
[1741720888693,259.72,127.24,127.17,0.05872475]
[1741720889206,267.5808,127.24,127.21,7.8623]
[1741720889393,259.72,127.24,127.21,7.8623]
[1741720889589,259.72,127.24,127.21,0.05634404]
[1741720890401,306.59151095,127.24,127.21,0.05634404]
[1741720892304,259.72,127.24,127.21,0.05634404]
[1741720893205,7.8618,127.22,127.21,0.05634404]
[1741720893506,259.72,127.24,127.21,0.05634404]
[1741720894708,7.8618,127.22,127.21,0.05634404]
[1741720895497,306.59151095,127.24,127.16,4.0403]
[1741720895702,46.87151095,127.21,127.12,45.2078]
[1741720895897,84.21151095,127.21,127.12,45.2078]
[1741720896303,84.21151095,127.21,127.12,37.34]
[1741720896509,46.87151095,127.18,127.12,37.34]
[1741720896709,7.8655,127.16,127.15,0.05281332]
[1741720897310,7.8655,127.17,127.15,0.05281332]
[1741720897611,46.9304972,127.18,127.15,0.05281332]
[1741720898403,7.865,127.17,127.15,0.05281332]
[1741720898607,46.9304972,127.18,127.15,0.05281332]
[1741720898803,7.8655,127.16,127.15,0.05281332]
[1741720899106,267.4055,127.16,127.15,0.05281332]
[1741720899807,259.54,127.16,127.1,4.037]
[1741720900402,46.87151095,127.15,127.02,236.87151095]
[1741720900602,46.87151095,127.15,127.03,49.9717]
[1741720900810,50.79541095,127.15,127.08,0.05363659]
[1741720901008,0.05395884,127.1,127.08,0.05363659]
[1741720901208,0.05704513,127.1,127.08,37.34]
[1741720901409,0.05704513,127.1,127.09,7.8698]
[1741720902209,296.88,127.16,127.08,37.39073086]
[1741720902409,304.7458,127.16,127.09,4.2925]
[1741720902611,296.88,127.16,127.09,4.2925]
[1741720903309,259.54,127.16,127.1,4.0722]
[1741720903509,0.06066747,127.14,127.11,0.05299139]
[1741720903913,0.06066747,127.14,127.11,7.92119139]
[1741720904115,0.06066747,127.14,127.11,0.05299139]
[1741720906510,0.06066747,127.14,127.13,7.8673]
[1741720908423,259.54,127.16,127.15,7.8661]
[1741720908615,46.87151095,127.2,127.12,37.32]
[1741720908815,306.45151095,127.2,127.12,37.32]
[1741720909015,41.91,127.22,127.12,37.32]
[1741720909016,259.58,127.21,127.12,37.32]
[1741720909518,259.58,127.21,127.15,0.05924447]
[1741720910222,259.58,127.21,127.16,7.865]
[1741720910223,7.8635,127.2,127.16,7.865]
[1741720910411,259.58,127.21,127.15,0.05924447]
[1741720910925,259.58,127.21,127.16,37.32]
[1741720911117,259.58,127.21,127.16,45.3107]
[1741720911318,259.58,127.21,127.19,7.863]
[1741720911824,259.58,127.21,127.19,7.91571865]
[1741720912125,259.58,127.21,127.2,7.863]
[1741720914018,7.8602,127.25,127.19,0.05271865]
[1741720914326,259.52,127.27,127.2,37.3]
[1741720914722,259.52,127.27,127.22,0.05706426]
[1741720915229,259.52,127.27,127.24,7.8602]
[1741720915528,259.52,127.27,127.22,0.05706426]
[1741720915920,267.3789,127.27,127.24,7.8602]
[1741720917027,259.52,127.27,127.22,0.05706426]
[1741720918129,259.52,127.27,127.22,7.91856426]
[1741720918428,7.8611,127.23,127.22,0.05706426]
[1741720918823,288.35927964,127.27,127.22,0.05706426]
[1741720919023,259.52,127.27,127.22,0.05706426]
[1741720919624,259.52,127.27,127.25,7.8599]
[1741720920029,263.5091,127.33,127.25,37.33316827]
[1741720920425,263.5091,127.33,127.25,37.28]
[1741720920626,263.5091,127.33,127.28,0.05173597]
[1741720921825,263.5091,127.33,127.29,7.857]
[1741720922129,263.5091,127.33,127.28,0.05173597]
[1741720923231,263.5091,127.33,127.28,7.90973597]
[1741720923431,263.5091,127.33,127.28,0.05173597]
[1741720923732,7.8557,127.32,127.28,0.05173597]
[1741720924037,263.5091,127.33,127.28,0.05173597]
[1741720924334,7.8572,127.3,127.28,0.05173597]
[1741720924531,263.5091,127.33,127.28,0.05173597]
[1741720925629,259.46,127.33,127.28,0.05173597]
[1741720925834,259.46,127.33,127.32,7.8556]
[1741720926228,28.83927964,127.38,127.31,0.05574596]
[1741720926424,296.62,127.39,127.31,0.05574596]
[1741720926630,296.62,127.39,127.3,4.2696]
[1741720926825,325.45927964,127.39,127.34,0.059474]
[1741720927538,7.8522,127.38,127.34,7.913474]
[1741720927835,325.45927964,127.39,127.34,0.059474]
[1741720928535,28.83927964,127.36,127.29,53.3994]
[1741720928729,28.83927964,127.36,127.29,49.2831]
[1741720928924,28.83927964,127.36,127.29,41.426]
[1741720929124,37.26,127.38,127.29,41.426]
[1741720929327,288.19927964,127.39,127.29,41.426]
[1741720929533,0.0541387,127.35,127.32,0.05328149]
[1741720930234,7.8544,127.34,127.32,0.05328149]
[1741720930535,0.0541387,127.35,127.32,0.05328149]
[1741720931334,7.855,127.33,127.32,0.05328149]
[1741720932431,28.83927964,127.33,127.26,7.859]
[1741720932734,7.8585,127.28,127.25,37.24]
[1741720932930,259.26,127.31,127.25,37.24]
[1741720933134,7.8572,127.3,127.25,37.24]
[1741720933336,259.26,127.31,127.25,37.24]
[1741720933733,0.05793596,127.29,127.27,0.04989788]
[1741720934935,0.05793596,127.29,127.27,7.90829788]
[1741720935134,0.05793596,127.29,127.27,0.04989788]
[1741720937040,7.8581,127.28,127.27,0.04989788]
[1741720937231,0.05793596,127.29,127.27,0.04989788]
[1741720939242,0.05793596,127.29,127.27,9.788e-05]
[1741720939542,7.8581,127.28,127.27,9.788e-05]
[1741720940240,7.8624,127.21,127.19,37.22]
[1741720940431,28.83927964,127.27,127.19,37.22]
[1741720940632,28.83927964,127.27,127.19,45.0832]
[1741720940835,7.8623,127.22,127.19,7.8632]
[1741720941345,0.05818878,127.22,127.19,0.05722146]
[1741720941940,0.05818878,127.22,127.21,7.8618]
[1741720942635,8.1364,127.29,127.25,7.8595]
[1741720942839,11.8812,127.29,127.23,37.22]
[1741720943034,259.26,127.31,127.23,37.22]
[1741720943234,259.26,127.31,127.26,7.8593]
[1741720943442,259.26,127.31,127.23,37.22]
[1741720943741,259.26,127.31,127.28,7.8577]
[1741720943939,0.0538845,127.28,127.26,0.04985623]
[1741720944139,259.26,127.31,127.26,0.04985623]
[1741720944338,0.05404552,127.28,127.26,7.90885623]
[1741720944739,0.05404552,127.28,127.26,0.04985623]
[1741720945139,7.8587,127.27,127.26,0.04985623]
[1741720946344,0.05404552,127.28,127.26,7.90875623]
[1741720946744,0.05404552,127.28,127.26,0.04985623]
[1741720946944,0.05404552,127.28,127.27,7.8587]
[1741720947339,0.05404552,127.28,127.26,0.04985623]
[1741720947547,0.05404552,127.28,127.27,7.8587]
[1741720948044,0.05404552,127.28,127.26,0.04985623]
[1741720948746,0.05404552,127.28,127.27,7.8587]
[1741720948945,0.05404552,127.28,127.26,0.04985623]
[1741720949145,0.05404552,127.28,127.27,7.8587]
[1741720949742,0.05404552,127.28,127.26,0.04985623]
[1741720950844,0.05404552,127.28,127.26,7.90875623]
[1741720951040,0.05404552,127.28,127.26,0.04985623]
[1741720951246,7.91244552,127.28,127.26,0.04985623]
[1741720951647,7.8587,127.27,127.26,0.04985623]
[1741720951848,0.05404552,127.28,127.26,0.04985623]
[1741720953948,7.8587,127.27,127.26,0.04985623]
[1741720954754,0.05404552,127.28,127.26,0.04985623]
[1741720955156,7.8587,127.27,127.26,0.04985623]
[1741720955460,28.89332516,127.28,127.22,37.22]
[1741720955957,7.8605,127.25,127.22,45.0817]
[1741720956153,28.83927964,127.28,127.2,45.7218]
[1741720956363,18.01979068,127.26,127.2,45.7218]
[1741720956560,0.06010454,127.25,127.23,0.05667618]
[1741720957166,0.06010454,127.25,127.23,7.91747618]
[1741720957360,0.06010454,127.25,127.23,0.05667618]
[1741720957564,0.06010454,127.25,127.24,45.0605]
[1741720960268,4.54e-06,127.25,127.24,45.0605]
[1741720960469,259.26,127.31,127.3,7.8568]
[1741720962364,259.26,127.31,127.29,0.05089425]
[1741720962571,259.26,127.31,127.3,7.8568]
[1741720963369,259.26,127.31,127.29,7.90799425]
[1741720963670,259.26,127.31,127.29,0.05089425]
[1741720964269,259.26,127.31,127.25,37.2]
[1741720964470,267.5014,127.31,127.25,37.2]
[1741720964971,267.5014,127.31,127.22,8.0944]
[1741720965172,267.5014,127.31,127.22,45.2744]
[1741720965375,7.859,127.27,127.24,7.8602]
[1741720965568,7.859,127.27,127.25,0.05926125]
[1741720965771,7.8593,127.27,127.25,0.05926125]
[1741720965973,0.05154157,127.28,127.25,0.05926125]
[1741720966370,7.859,127.27,127.25,0.05926125]
[1741720967269,0.05154157,127.28,127.25,0.05926125]
[1741720967469,7.8593,127.26,127.25,0.05926125]
[1741720968276,7.859,127.27,127.25,0.05926125]
[1741720968976,7.859,127.27,127.25,7.91916125]
[1741720969275,0.05154157,127.28,127.25,0.05926125]
[1741720969766,7.859,127.27,127.25,0.05926125]
[1741720969965,0.05154157,127.28,127.26,7.8591]
[1741720970165,0.05154157,127.28,127.25,0.05926125]
[1741720970573,0.05154157,127.28,127.25,7.91886125]
[1741720970974,0.05154157,127.28,127.27,7.8587]
[1741720971174,0.05154157,127.28,127.25,0.05926125]
[1741720971573,0.05154157,127.28,127.26,7.8589]
[1741720971766,0.05154157,127.28,127.25,0.05926125]
[1741720972872,0.05154157,127.28,127.27,7.8587]
[1741720973275,259.26,127.31,127.26,37.18]
[1741720973471,259.26,127.31,127.3,7.8568]
[1741720978079,259.26,127.31,127.3,45.0168]
[1741720978875,0.0529152,127.32,127.3,37.16]
[1741720979277,7.9085152,127.32,127.3,37.16]
[1741720979477,7.9085152,127.32,127.29,7.91062241]
[1741720979675,7.8568,127.3,127.29,0.05352241]
[1741720980374,25.86608077,127.3,127.29,0.05352241]
[1741720980772,7.8577,127.29,127.24,37.16]
[1741720980977,18.00928077,127.3,127.24,37.16]
[1741720981178,18.00928077,127.32,127.24,37.16]
[1741720981383,7.8565,127.31,127.28,7.8579]
[1741720981578,18.00928077,127.32,127.24,37.16]
[1741720981783,55.16928077,127.34,127.24,37.16]
[1741720981984,0.05792279,127.29,127.27,0.05104098]
[1741720982381,28.80798294,127.33,127.27,0.05104098]
[1741720982587,0.05385146,127.29,127.27,0.05104098]
[1741720983083,0.05385146,127.29,127.27,7.90914098]
[1741720983289,0.05385146,127.29,127.27,0.05104098]
[1741720983480,0.05385146,127.29,127.28,7.8581]
[1741720983779,0.05385146,127.29,127.28,44.9981]
[1741720983984,12.3012,127.36,127.28,37.14]